bitfinex/quotes_BTCUSD_20241202
["timestamp","ask_amount","ask_price","bid_price","bid_amount"]
[1733165751135,0.00178902,95789.0,95788.0,0.2338765]
[1733165751548,0.00178902,95789.0,95788.0,0.3762542]
[1733165751749,0.00178902,95789.0,95788.0,0.47908566]
[1733165751989,0.00178902,95789.0,95788.0,0.48808566]
[1733165752195,0.00178902,95789.0,95788.0,0.49708566]
[1733165753440,0.00178902,95789.0,95788.0,0.90830889]
[1733165754475,0.00178902,95789.0,95788.0,0.49708566]
[1733165755757,0.00178902,95789.0,95788.0,0.92569853]
[1733165755988,0.00178902,95789.0,95788.0,0.5144753]
[1733165756283,0.00178902,95789.0,95788.0,0.55211915]
[1733165756497,0.00178902,95789.0,95788.0,0.16693379]
[1733165757351,0.00178902,95789.0,95788.0,0.14116614]
[1733165757567,0.00178902,95789.0,95788.0,0.16693379]
[1733165757770,0.00178902,95789.0,95788.0,0.14116614]
[1733165757978,0.00178902,95789.0,95788.0,0.23847255]
[1733165758394,0.00178902,95789.0,95788.0,0.2127049]
[1733165758617,0.00178902,95789.0,95788.0,0.14116614]
[1733165761019,0.00178902,95789.0,95788.0,0.28354384]
[1733165761230,0.00178902,95789.0,95788.0,0.36274384]
[1733165761709,0.00178902,95789.0,95788.0,0.77369685]
[1733165762617,0.00178902,95789.0,95788.0,0.36274384]
[1733165762849,0.00178902,95789.0,95788.0,0.87652831]
[1733165764016,0.00178902,95789.0,95788.0,0.4655753]
[1733165769489,0.00178902,95789.0,95788.0,0.4977884]
[1733165769710,0.00178902,95789.0,95788.0,0.4655753]
[1733165770612,0.00178902,95789.0,95788.0,0.49779982]
[1733165770821,0.00178902,95789.0,95788.0,0.41859982]
[1733165771391,0.00178902,95789.0,95788.0,0.80319425]
[1733165771623,0.00178902,95789.0,95788.0,0.8289619]
[1733165772454,0.00178902,95789.0,95788.0,0.41862293]
[1733165774766,0.00178902,95789.0,95788.0,0.39285528]
[1733165775172,0.00178902,95789.0,95788.0,0.27624523]
[1733165775445,0.05028902,95789.0,95788.0,0.02093129]
[1733165775652,0.39242132,95789.0,95788.0,0.018]
[1733165775851,0.39011132,95789.0,95788.0,0.018]
[1733165776263,0.64294278,95789.0,95788.0,0.009]
[1733165776686,0.64294278,95789.0,95788.0,0.01166406]
[1733165777124,0.54011132,95789.0,95788.0,0.00266406]
[1733165777554,0.54011132,95789.0,95788.0,0.01166406]
[1733165777766,0.54011132,95789.0,95788.0,0.00766406]
[1733165778167,0.45998766,95789.0,95788.0,0.00866406]
[1733165778587,0.28575531,95789.0,95788.0,0.00366406]
[1733165779024,0.28575531,95789.0,95788.0,0.00666406]
[1733165779251,0.45998766,95789.0,95788.0,0.00666406]
[1733165779466,0.45998766,95789.0,95788.0,0.00266406]
[1733165779634,0.54337761,95789.0,95788.0,0.00466406]
[1733165779975,0.54337761,95789.0,95788.0,0.00266406]
[1733165780469,0.54337761,95789.0,95788.0,0.00566406]
[1733165780936,0.54337761,95789.0,95788.0,0.00766406]
[1733165781123,0.54011132,95789.0,95788.0,0.00766406]
[1733165781870,0.54337762,95789.0,95788.0,0.00466406]
[1733165782105,0.54337762,95789.0,95788.0,0.00666406]
[1733165782533,0.64620908,95789.0,95788.0,0.00666406]
[1733165783907,0.54337762,95789.0,95788.0,0.00666406]
[1733165788848,0.54011132,95789.0,95788.0,0.00666406]
[1733165789080,0.54337764,95789.0,95788.0,0.00666406]
[1733165792503,0.54337767,95789.0,95788.0,0.00666406]
[1733165795824,0.54011132,95789.0,95788.0,0.00666406]
[1733165796285,0.54337766,95789.0,95788.0,0.00666406]
[1733165797903,0.64620912,95789.0,95788.0,0.00666406]
[1733165800745,0.6635009,95789.0,95788.0,0.00666406]
[1733165801474,0.56066944,95789.0,95788.0,0.00666406]
[1733165803073,0.5415919,95789.0,95788.0,0.00666406]
[1733165803341,0.15326963,95789.0,95788.0,0.00666406]
[1733165803588,0.32981183,95789.0,95788.0,0.00666406]
[1733165803829,0.32750198,95789.0,95788.0,0.00666406]
[1733165804047,0.32750198,95789.0,95788.0,0.00466406]
[1733165804496,0.32750198,95789.0,95788.0,0.00766406]
[1733165804737,0.32750198,95789.0,95788.0,0.00566406]
[1733165804951,0.32750198,95789.0,95788.0,0.00366406]
[1733165805160,0.32750198,95789.0,95788.0,0.00566406]
[1733165806000,0.32750198,95789.0,95788.0,0.00766406]
[1733165806213,0.32750198,95789.0,95788.0,0.00566406]
[1733165806419,0.32750198,95789.0,95788.0,0.00266406]
[1733165806638,0.32923124,95789.0,95788.0,0.00666406]
[1733165807306,0.32923124,95789.0,95788.0,0.00366406]
[1733165807529,0.32923124,95789.0,95788.0,0.00566406]
[1733165810396,0.32923124,95789.0,95788.0,0.00566405]
[1733165810605,0.54282119,95789.0,95788.0,0.00566405]
[1733165812905,0.54282119,95789.0,95788.0,0.00266405]
[1733165813323,0.54282119,95789.0,95788.0,0.00366405]
[1733165813814,0.41262119,95789.0,95788.0,0.00366405]
[1733165814696,0.32923124,95789.0,95788.0,0.00266405]
[1733165815610,0.64325265,95789.0,95788.0,0.00266405]
[1733165815830,0.54042119,95789.0,95788.0,0.00266405]
[1733165816072,0.54042119,95789.0,95788.0,0.00366405]
[1733165816498,0.54042119,95789.0,95788.0,0.00466405]
[1733165816718,0.54042119,95789.0,95788.0,0.00266405]
[1733165816944,0.54042119,95789.0,95788.0,0.00466405]
[1733165817175,0.54042128,95789.0,95788.0,0.00466405]
[1733165817702,0.54042128,95789.0,95788.0,0.00266405]
[1733165817944,0.54042128,95789.0,95788.0,0.00366405]
[1733165818603,0.32923133,95789.0,95788.0,0.00366405]
[1733165819313,0.32923133,95789.0,95788.0,0.00352865]
[1733165819758,0.32923133,95789.0,95788.0,0.00452865]
[1733165820199,0.32923133,95789.0,95788.0,0.00352865]
[1733165820634,0.32923129,95789.0,95788.0,0.00452865]
[1733165822049,0.32923129,95789.0,95788.0,0.00352865]
[1733165822493,0.32923129,95789.0,95788.0,0.00452865]
[1733165822942,0.32596501,95789.0,95788.0,0.00352865]
[1733165823205,0.32923125,95789.0,95788.0,0.00552865]
[1733165823674,0.32923125,95789.0,95788.0,0.00352865]
[1733165823894,0.32923125,95789.0,95788.0,0.00552865]
[1733165825020,0.1549989,95789.0,95788.0,0.00552865]
[1733165825238,0.17923125,95789.0,95788.0,0.00352865]
[1733165825705,0.33154117,95789.0,95788.0,0.00652865]
[1733165825928,0.32923125,95789.0,95788.0,0.00652865]
[1733165826409,0.3292312,95789.0,95788.0,0.00352865]
[1733165826666,0.3292312,95789.0,95788.0,0.00652865]
[1733165828450,0.3292312,95789.0,95788.0,0.00852865]
[1733165828881,0.3292312,95789.0,95788.0,0.00352865]
[1733165829339,0.3292312,95789.0,95788.0,0.00552865]
[1733165829797,0.3292312,95789.0,95788.0,0.00352865]
[1733165830017,0.32923125,95789.0,95788.0,0.00552865]
[1733165831562,0.4126212,95789.0,95788.0,0.00552865]
[1733165831839,0.5364212,95789.0,95788.0,0.00552865]
[1733165832496,0.5364212,95789.0,95788.0,0.00352865]
[1733165832709,0.5364212,95789.0,95788.0,0.00452865]
[1733165833198,0.63926641,95789.0,95788.0,0.00352865]
[1733165833432,0.63926641,95789.0,95788.0,0.00100065]
[1733165833433,0.64747098,95789.0,95788.0,0.00100065]
[1733165833646,0.63940244,95789.0,95788.0,0.00100065]
[1733165834078,0.64747098,95789.0,95788.0,0.00100065]
[1733165834795,0.66525519,95789.0,95788.0,6.5e-07]
[1733165835043,0.76808665,95789.0,95788.0,6.5e-07]
[1733165835255,0.65705062,95789.0,95788.0,6.5e-07]
[1733165835989,0.55420541,95789.0,95788.0,6.5e-07]
[1733165836203,0.0049989,95789.0,95788.0,6.5e-07]
[1733165836636,0.00173266,95789.0,95788.0,6.5e-07]
[1733165836883,0.00499876,95789.0,95788.0,6.5e-07]
[1733165837325,0.00499876,95789.0,95788.0,0.22177103]
[1733165837582,0.00499876,95789.0,95788.0,0.25404437]
[1733165838068,0.00499876,95789.0,95788.0,0.27155187]
[1733165838272,0.17923111,95789.0,95788.0,0.01400065]
[1733165838493,0.18154093,95789.0,95788.0,0.01400065]
[1733165838706,0.18154093,95789.0,95788.0,0.00500065]
[1733165838922,0.18154093,95789.0,95788.0,0.00900065]
[1733165839141,0.18154093,95789.0,95788.0,0.00800065]
[1733165839611,0.18154093,95789.0,95788.0,0.00400065]
[1733165840064,0.18154093,95789.0,95788.0,0.00700065]
[1733165840736,0.18154093,95789.0,95788.0,0.00300065]
[1733165841184,0.18154093,95789.0,95788.0,0.00100065]
[1733165841398,0.18154093,95789.0,95788.0,6.5e-07]
[1733165841620,0.18154093,95789.0,95788.0,0.00200065]
[1733165841831,0.26757668,95789.0,95788.0,0.00200065]
[1733165842050,0.26526686,95789.0,95788.0,0.00500065]
[1733165842740,0.17596501,95789.0,95788.0,0.00500065]
[1733165842955,0.17827491,95789.0,95788.0,0.00500065]
[1733165843170,0.33154106,95789.0,95788.0,0.00500065]
[1733165843389,0.32923116,95789.0,95788.0,0.00500065]
[1733165846095,0.53632111,95789.0,95788.0,0.00500065]
[1733165846323,0.63915257,95789.0,95788.0,0.00500065]
[1733165847001,0.63915257,95789.0,95788.0,0.00300065]
[1733165847253,0.63915257,95789.0,95788.0,0.00400065]
[1733165847474,0.74199778,95789.0,95788.0,6.5e-07]
[1733165847702,0.74199778,95789.0,95786.0,0.0008647]
[1733165847703,0.4306223,95787.0,95786.0,3.5e-07]
[1733165847918,0.53673366,95787.0,95786.0,3.5e-07]
[1733165849877,0.51373366,95787.0,95786.0,3.5e-07]
[1733165850990,0.41088845,95787.0,95786.0,3.5e-07]
[1733165851884,0.41188845,95787.0,95786.0,3.5e-07]
[1733165852372,0.51471991,95787.0,95786.0,3.5e-07]
[1733165852587,0.51571991,95787.0,95786.0,3.5e-07]
[1733165853261,0.51471991,95787.0,95786.0,3.5e-07]
[1733165853490,0.2386561,95787.0,95786.0,3.5e-07]
[1733165853712,0.41188845,95787.0,95786.0,3.5e-07]
[1733165853924,0.41088863,95787.0,95786.0,3.5e-07]
[1733165854368,0.41188863,95787.0,95786.0,3.5e-07]
[1733165855079,0.17849864,95787.0,95786.0,3.5e-07]
[1733165855324,0.00426629,95787.0,95786.0,3.5e-07]
[1733165856252,0.00326629,95787.0,95786.0,3.5e-07]
[1733165856494,0.00326629,95787.0,95786.0,0.00100035]
[1733165856727,0.00326629,95787.0,95786.0,0.00050035]
[1733165856947,0.00326629,95787.0,95786.0,0.17984556]
[1733165857187,0.00326629,95787.0,95786.0,0.20229977]
[1733165857445,0.00326629,95787.0,95786.0,0.20629977]
[1733165857929,0.00326629,95787.0,95786.0,0.21029977]
[1733165858828,0.00326629,95787.0,95786.0,0.20629977]
[1733165859050,0.00173266,95789.0,95786.0,0.20629977]
[1733165859238,0.00326607,95788.0,95787.0,0.19307471]
[1733165859802,0.21052466,95789.0,95787.0,0.19307471]
[1733165860020,0.21052466,95789.0,95787.0,0.10284521]
[1733165860225,0.00326591,95788.0,95787.0,0.10284521]
[1733165860434,0.21052466,95789.0,95787.0,0.10284521]
[1733165860809,0.00326591,95788.0,95787.0,0.10284521]
[1733165861250,0.00326591,95788.0,95787.0,0.11884521]
[1733165862371,0.00326591,95788.0,95787.0,0.11184521]
[1733165863094,0.00326591,95788.0,95787.0,0.10284521]
[1733165863309,0.00326591,95788.0,95787.0,0.11884521]
[1733165867116,0.00326591,95788.0,95787.0,0.13256851]
[1733165867546,0.21052466,95789.0,95787.0,0.13256851]
[1733165867803,0.00326594,95788.0,95787.0,0.13256851]
[1733165868905,0.00326594,95788.0,95787.0,0.11884521]
[1733165869107,0.00326594,95788.0,95787.0,0.10284521]
[1733165869334,0.00173266,95789.0,95787.0,0.28195526]
[1733165869588,0.00173266,95789.0,95788.0,0.288994]
[1733165869829,0.00173266,95789.0,95788.0,0.39183921]
[1733165870068,0.00173266,95789.0,95788.0,0.49467067]
[1733165870994,0.00173266,95789.0,95788.0,0.50367067]
[1733165872665,0.00173266,95789.0,95788.0,0.51267067]
[1733165872954,0.00173266,95789.0,95788.0,0.62928072]
[1733165873206,0.00173266,95789.0,95788.0,1.06618759]
[1733165873419,0.00173266,95789.0,95788.0,0.65504837]
[1733165873642,0.00173266,95789.0,95788.0,0.68725239]
[1733165874326,0.00173266,95789.0,95788.0,0.64604837]
[1733165874977,0.00173266,95789.0,95788.0,0.63704837]
[1733165875194,0.00173266,95789.0,95788.0,0.66004837]
[1733165875452,0.00173266,95789.0,95788.0,0.66904837]
[1733165875686,0.00173266,95789.0,95788.0,0.67804837]
[1733165877212,0.00173266,95789.0,95788.0,1.08871777]
[1733165877647,0.00173266,95789.0,95788.0,1.08871119]
[1733165878393,0.00173266,95789.0,95788.0,0.67804837]
[1733165878616,0.00173266,95789.0,95788.0,0.51267067]
[1733165879072,0.00173266,95789.0,95788.0,0.12084521]
[1733165879778,0.00173266,95789.0,95788.0,0.23745526]
[1733165880001,0.00173266,95789.0,95788.0,0.23923615]
[1733165880639,0.00499864,95789.0,95788.0,0.23923615]
[1733165881094,0.00499864,95789.0,95788.0,0.36673615]
[1733165881329,0.00173266,95789.0,95788.0,0.46956761]
[1733165882004,0.00173266,95789.0,95788.0,0.51833526]
[1733165882503,0.00173266,95789.0,95788.0,0.52609082]
[1733165883192,0.0049983,95789.0,95788.0,0.52609082]
[1733165883405,0.00173266,95789.0,95788.0,0.52609082]
[1733165884306,0.00173266,95789.0,95788.0,0.67609082]
[1733165884546,0.00173266,95789.0,95788.0,0.70828042]
[1733165884823,0.02829126,95800.0,95799.0,0.11661005]
[1733165885046,0.02829126,95800.0,95799.0,0.28320419]
[1733165885950,0.02829126,95800.0,95799.0,0.29220419]
[1733165886167,0.02829126,95800.0,95799.0,0.12860077]
[1733165886413,0.02829126,95800.0,95799.0,0.12084521]
[1733165890189,0.20252361,95800.0,95799.0,0.018]
[1733165892918,0.02829126,95800.0,95799.0,0.018]
[1733165893134,0.20252361,95800.0,95799.0,0.018]
[1733165893625,0.33222361,95800.0,95799.0,0.018]
[1733165893882,0.41561356,95800.0,95799.0,0.018]
[1733165894111,0.51844502,95800.0,95799.0,0.018]
[1733165894336,0.41561356,95800.0,95799.0,0.009]
[1733165894580,0.2576223,95789.0,95788.0,0.00183931]
[1733165894826,0.3343223,95789.0,95788.0,0.00183931]
[1733165895067,0.3343223,95789.0,95788.0,0.00183928]
[1733165895518,0.63338013,95789.0,95788.0,0.00183928]
[1733165896745,0.63664648,95789.0,95788.0,0.00183928]
[1733165897430,0.63864648,95789.0,95788.0,0.00183928]
[1733165898127,0.63837628,95789.0,95788.0,0.00183928]
[1733165898384,0.64037628,95789.0,95788.0,0.00183928]
[1733165898592,0.63837628,95789.0,95788.0,0.00183928]
[1733165898826,0.63937628,95789.0,95788.0,0.00183928]
[1733165899052,0.64137628,95789.0,95788.0,0.00183928]
[1733165900182,0.3051285,95789.0,95788.0,0.00183928]
[1733165900442,0.00599615,95789.0,95788.0,0.00183928]
[1733165900663,0.1812285,95789.0,95788.0,0.00183928]
[1733165900915,0.1802285,95789.0,95788.0,0.00183928]
[1733165901150,0.1812285,95789.0,95788.0,0.00183928]
[1733165901377,0.1802285,95789.0,95788.0,0.00183928]
[1733165901602,0.1792285,95789.0,95788.0,0.00683928]
[1733165901837,0.17596215,95789.0,95788.0,0.01083928]
[1733165902061,0.17596215,95789.0,95788.0,0.00583928]
[1733165902276,0.17596215,95789.0,95788.0,0.00683928]
[1733165902493,0.0017298,95789.0,95788.0,0.00683928]
[1733165902746,0.0017298,95789.0,95788.0,0.01083928]
[1733165902969,0.0017298,95789.0,95788.0,0.01858485]
[1733165903194,0.17596215,95789.0,95788.0,0.01858485]
[1733165903683,0.0017298,95789.0,95788.0,0.01858485]
[1733165904112,0.17596215,95789.0,95788.0,0.01858485]
[1733165905272,0.0017298,95789.0,95788.0,0.01858485]
[1733165905508,0.17596215,95789.0,95788.0,0.01858485]
[1733165905726,0.17596215,95789.0,95788.0,0.01083928]
[1733165906639,0.0017298,95789.0,95788.0,0.01083928]
[1733165906854,0.17596215,95789.0,95788.0,0.01083928]
[1733165907511,0.17596215,95789.0,95788.0,0.01859412]
[1733165908811,0.0017298,95789.0,95788.0,0.01859412]
[1733165909031,0.0017298,95789.0,95788.0,0.12143933]
[1733165909968,0.0017298,95789.0,95788.0,0.12230746]
[1733165912373,0.0017298,95789.0,95788.0,0.13634757]
[1733165913487,0.0017298,95789.0,95788.0,0.13634964]
[1733165913984,0.0017298,95789.0,95788.0,0.12230953]
[1733165915595,0.0816298,95789.0,95788.0,0.01946432]
[1733165916973,0.0816298,95789.0,95788.0,0.01947134]
[1733165917179,0.0816298,95789.0,95788.0,0.01047134]
[1733165917393,0.0816298,95789.0,95788.0,0.01447134]
[1733165917641,0.0816298,95789.0,95788.0,0.01847134]
[1733165918310,0.0816298,95789.0,95788.0,0.01047134]
[1733165918534,0.0816298,95789.0,95788.0,0.01347134]
[1733165919230,0.0816298,95789.0,95788.0,0.01647134]
[1733165920554,0.0816298,95789.0,95788.0,0.01647033]
[1733165920775,0.0017298,95789.0,95788.0,0.01647033]
[1733165920991,0.0017298,95789.0,95788.0,0.0151894]
[1733165921651,0.0017298,95789.0,95788.0,0.01463105]
[1733165924356,0.08742961,95789.0,95788.0,0.01462903]
[1733165924788,0.08742961,95789.0,95788.0,0.0068648]
[1733165925010,0.26166196,95789.0,95788.0,0.0068648]
[1733165925221,0.2626179,95789.0,95788.0,0.0068648]
[1733165925474,0.26261788,95789.0,95788.0,0.0068648]
[1733165927477,0.26261788,95789.0,95788.0,0.01462903]
[1733165927706,0.26261786,95789.0,95788.0,0.01462903]
[1733165933533,0.40586555,95789.0,95788.0,0.01462903]
[1733165933761,0.38661786,95789.0,95788.0,0.01462903]
[1733165934543,0.38661792,95789.0,95788.0,0.01462903]
[1733165934937,0.38661792,95789.0,95788.0,0.01162903]
[1733165935347,0.00499562,95789.0,95788.0,0.01162903]
[1733165935564,0.18153786,95789.0,95788.0,0.00862903]
[1733165935768,0.00499562,95789.0,95788.0,0.00862903]
[1733165936006,0.00499562,95789.0,95788.0,0.00962903]
[1733165936213,0.17922797,95789.0,95788.0,0.00962903]
[1733165936412,0.17922797,95789.0,95788.0,0.00862903]
[1733165936647,0.17596215,95789.0,95788.0,0.00862903]
[1733165936874,0.0017298,95789.0,95788.0,0.11147424]
[1733165937082,0.0017298,95789.0,95788.0,0.2916985]
[1733165937254,0.0017298,95789.0,95788.0,0.78924401]
[1733165937506,0.0017298,95789.0,95788.0,0.37601231]
[1733165937918,0.0017298,95789.0,95788.0,0.37301231]
[1733165938142,0.0017298,95789.0,95788.0,0.38201231]
[1733165938336,0.0017298,95789.0,95788.0,0.26540226]
[1733165938480,0.0017298,95789.0,95788.0,0.15588805]
[1733165938691,0.0017298,95789.0,95788.0,0.15288805]
[1733165938905,0.0017298,95789.0,95788.0,0.15588805]
[1733165939369,0.0017298,95789.0,95788.0,0.14388805]
[1733165939737,0.0017298,95789.0,95788.0,0.16188805]
[1733165940147,0.0017298,95789.0,95788.0,0.14388805]
[1733165940581,0.0017298,95789.0,95788.0,0.16188805]
[1733165940775,0.0017298,95789.0,95788.0,0.17498334]
[1733165941210,0.0017298,95789.0,95788.0,0.18398334]
[1733165941346,0.0017298,95789.0,95788.0,0.17498334]
[1733165941548,0.0017298,95789.0,95788.0,0.17498854]
[1733165941758,0.0017298,95789.0,95788.0,0.28259859]
[1733165941979,0.0017298,95789.0,95788.0,0.42189859]
[1733165942396,0.01939884,95800.0,95799.0,0.32538005]
[1733165942617,0.208707,95828.0,95813.0,0.11661005]
[1733165942844,0.00230876,95836.0,95816.0,0.208731]
[1733165943054,0.00230876,95836.0,95818.0,0.4127219]
[1733165943055,0.208697,95833.0,95818.0,0.4127219]
[1733165943285,0.208665,95848.0,95826.0,0.21945526]
[1733165943499,0.17423235,95841.0,95830.0,0.208701]
[1733165943729,0.17423235,95841.0,95831.0,0.11061464]
[1733165943955,0.17423235,95841.0,95832.0,0.00776943]
[1733165944176,0.17423235,95841.0,95833.0,0.11061464]
[1733165944428,0.17423235,95841.0,95834.0,0.05280246]
[1733165944653,0.17481774,95841.0,95835.0,0.10284521]
[1733165944881,0.17481774,95841.0,95835.0,0.11061464]
[1733165945301,0.38349674,95841.0,95835.0,0.11061464]
[1733165945977,0.38349674,95841.0,95835.0,0.11461464]
[1733165946179,0.20926439,95841.0,95836.0,0.02678308]
[1733165946398,0.20926439,95841.0,95837.0,0.10284521]
[1733165948969,0.00058539,95841.0,95837.0,0.11184521]
[1733165949176,0.00058539,95841.0,95837.0,0.52921921]
[1733165949384,0.00058539,95841.0,95839.0,0.208683]
[1733165949616,0.00058539,95841.0,95840.0,0.19851381]
[1733165950292,0.00058539,95841.0,95840.0,0.27901381]
[1733165951148,0.00124539,95847.0,95840.0,0.27901381]
[1733165951378,0.00047747,95847.0,95841.0,0.00772095]
[1733165951590,0.00047747,95847.0,95842.0,0.10284521]
[1733165951803,0.00047747,95847.0,95843.0,0.26910489]
[1733165952016,0.00047747,95847.0,95844.0,0.11056616]
[1733165953574,0.00047747,95847.0,95844.0,0.31923816]
[1733165953788,0.00047747,95847.0,95845.0,0.00772095]
[1733165954004,0.00047747,95847.0,95846.0,0.10284521]
[1733165954218,0.00047747,95847.0,95846.0,0.14956282]
[1733165954434,0.00047747,95847.0,95846.0,0.15728377]
[1733165955355,0.00047747,95847.0,95846.0,0.16428377]
[1733165956045,0.00047747,95847.0,95846.0,0.17328377]
[1733165957571,0.00047747,95847.0,95846.0,0.17326245]
[1733165961744,0.00047747,95847.0,95846.0,0.2898725]
[1733165961966,0.00047747,95847.0,95846.0,0.3360725]
[1733165962178,0.0017292,95867.0,95863.0,0.208631]
[1733165962404,0.0017292,95867.0,95864.0,0.13140794]
[1733165962610,0.0017292,95867.0,95865.0,0.208626]
[1733165962842,0.0017292,95867.0,95866.0,0.11054484]
[1733165963052,0.0017292,95867.0,95866.0,0.10284521]
[1733165965695,0.0017292,95867.0,95866.0,0.11777735]
[1733165965910,0.0017292,95867.0,95866.0,0.12055509]
[1733165966121,0.0017292,95867.0,95866.0,0.11355509]
[1733165966330,0.0017292,95867.0,95866.0,0.12755509]
[1733165966543,0.0017292,95867.0,95866.0,0.11855509]
[1733165966753,0.25466946,95867.0,95866.0,0.013]
[1733165966968,0.3357515,95867.0,95866.0,0.013]
[1733165967660,0.3357515,95867.0,95866.0,0.005]
[1733165967891,0.17423235,95863.0,95853.0,0.00772661]
[1733165968109,0.16151915,95867.0,95854.0,0.00772661]
[1733165968110,0.38288035,95855.0,95854.0,0.00772661]
[1733165968524,0.38288035,95855.0,95854.0,0.00911599]
[1733165968927,0.208665,95847.0,95846.0,7.327e-05]
[1733165969136,0.285065,95847.0,95846.0,0.10464728]
[1733165969557,0.285065,95847.0,95846.0,0.00180207]
[1733165970888,0.285065,95847.0,95846.0,0.01080207]
[1733165971825,0.285065,95847.0,95846.0,0.01680207]
[1733165972235,0.285065,95847.0,95846.0,0.01080207]
[1733165972440,0.285065,95847.0,95846.0,0.00180207]
[1733165972667,0.285065,95847.0,95846.0,0.01580207]
[1733165973341,0.285065,95847.0,95846.0,0.00980207]
[1733165973571,0.285065,95847.0,95846.0,0.00780207]
[1733165973790,0.285065,95847.0,95846.0,0.01580207]
[1733165974034,0.285065,95847.0,95846.0,0.00780207]
[1733165974288,0.285065,95847.0,95846.0,0.01580207]
[1733165974742,0.285065,95847.0,95846.0,0.00980207]
[1733165974978,0.285065,95847.0,95846.0,0.01580207]
[1733165977214,0.77746128,95847.0,95846.0,0.01580207]
[1733165977437,0.84232161,95847.0,95846.0,0.01580207]
[1733165978369,0.84232225,95847.0,95846.0,0.01580207]
[1733165978580,0.84232225,95847.0,95846.0,0.00980207]
[1733165978809,0.76081185,95847.0,95846.0,0.00980207]
[1733165979221,0.76081185,95847.0,95846.0,0.00380207]
[1733165979438,0.76081185,95847.0,95846.0,0.00580207]
[1733165979649,0.74325152,95847.0,95846.0,0.00580207]
[1733165980100,0.97192819,95847.0,95846.0,0.00580207]
[1733165980767,0.97192819,95847.0,95846.0,0.00380207]
[1733165980993,0.97192819,95847.0,95846.0,0.00480207]
[1733165981219,0.86909673,95847.0,95846.0,0.00280207]
[1733165981691,0.86788341,95847.0,95846.0,0.00280207]
[1733165981931,0.86788341,95847.0,95815.0,0.40918029]
[1733165981932,0.208733,95816.0,95815.0,0.40918029]
[1733165982165,0.17423235,95802.0,95798.0,0.40918029]
[1733165982405,0.17423235,95802.0,95799.0,0.10284521]
[1733165982616,0.208768,95800.0,95799.0,0.10284521]
[1733165983366,0.20894318,95800.0,95799.0,0.10284521]
[1733165983825,0.20894318,95800.0,95799.0,0.11184521]
[1733165984693,0.20894318,95800.0,95799.0,0.009]
[1733165984694,0.38317553,95800.0,95799.0,0.009]
[1733165984901,0.38317553,95800.0,95799.0,0.018]
[1733165985629,0.38317553,95800.0,95799.0,0.009]
[1733165985853,0.208792,95789.0,95788.0,0.0008648]
[1733165986056,0.208792,95789.0,95788.0,0.10371001]
[1733165986489,0.208792,95789.0,95788.0,0.0008648]
[1733165986722,0.46132435,95789.0,95788.0,0.0008648]
[1733165987000,0.46132435,95789.0,95788.0,0.0098648]
[1733165987650,0.5907143,95789.0,95788.0,0.0098648]
[1733165988785,0.5907143,95789.0,95788.0,0.0178648]
[1733165989709,0.84154273,95789.0,95788.0,0.0178648]
[1733165990361,0.84154273,95789.0,95788.0,0.0088648]
[1733165990579,0.84154273,95789.0,95788.0,0.0158648]
[1733165991490,0.84154273,95789.0,95788.0,0.0078648]
[1733165991724,0.84154273,95789.0,95788.0,0.0128648]
[1733165992201,0.7407143,95789.0,95788.0,0.0128648]
[1733165995031,0.75848515,95789.0,95788.0,0.0128648]
[1733165995233,0.88433036,95789.0,95788.0,8e-07]
[1733165995477,0.86072835,95787.0,95786.0,7e-07]
[1733165995714,1.08940502,95787.0,95786.0,7e-07]
[1733165995852,0.89267147,95787.0,95786.0,7e-07]
[1733165996493,0.89567147,95787.0,95786.0,7e-07]
[1733165997572,0.75038475,95787.0,95786.0,7e-07]
[1733165997984,0.7481183,95787.0,95786.0,7e-07]
[1733165998440,0.74738475,95787.0,95786.0,7e-07]
[1733165998662,0.75138475,95787.0,95786.0,7e-07]
[1733165999082,0.74738475,95787.0,95786.0,7e-07]
[1733165999297,0.75238475,95787.0,95786.0,7e-07]
[1733165999512,0.98106142,95787.0,95786.0,7e-07]
[1733165999723,0.97779497,95787.0,95786.0,7e-07]
[1733165999965,0.98106156,95787.0,95786.0,7e-07]
[1733166000626,1.18106156,95787.0,95786.0,7e-07]
[1733166000848,1.38341275,95787.0,95786.0,7e-07]
[1733166001085,0.6648403,95777.0,95776.0,6.5e-07]
[1733166001305,0.5612223,95771.0,95770.0,1.3e-07]
[1733166001530,0.87289851,95771.0,95770.0,1.3e-07]
[1733166001752,0.87616546,95771.0,95770.0,1.3e-07]
[1733166002639,0.75032025,95771.0,95770.0,0.00058552]
[1733166002849,0.85315171,95771.0,95770.0,0.00058552]
[1733166003063,0.85315171,95771.0,95770.0,0.00358552]
[1733166003280,0.85315171,95771.0,95770.0,0.00058552]
[1733166003708,0.85615171,95771.0,95770.0,0.00058552]
[1733166004139,0.85615171,95771.0,95770.0,0.00358552]
[1733166004782,0.85615171,95771.0,95770.0,0.00058552]
[1733166005672,0.87359819,95771.0,95770.0,0.00058552]
[1733166006782,0.76749978,95771.0,95770.0,0.00058552]
[1733166009429,0.7500533,95771.0,95770.0,0.00058552]
[1733166010038,0.87589851,95771.0,95770.0,5.2e-07]
[1733166010238,0.88396705,95771.0,95770.0,5.2e-07]
[1733166010652,0.88451575,95771.0,95770.0,5.2e-07]
[1733166010851,0.88451575,95771.0,95762.0,0.0008649]
[1733166010852,0.65548035,95763.0,95762.0,4.2e-07]
[1733166011124,0.65548035,95763.0,95760.0,2.2e-07]
[1733166011125,0.2576223,95761.0,95760.0,2.2e-07]
[1733166011338,1.06016751,95761.0,95760.0,2.2e-07]
[1733166011553,1.06823605,95761.0,95760.0,2.2e-07]
[1733166011770,1.06889345,95761.0,95760.0,2.2e-07]
[1733166011978,1.14689562,95761.0,95760.0,2.2e-07]
[1733166012180,1.15028497,95761.0,95760.0,2.2e-07]
[1733166013076,0.6994973,95751.0,95734.0,0.00085547]
[1733166013286,0.7224973,95751.0,95734.0,0.00085547]
[1733166013865,0.7699973,95751.0,95734.0,0.00085547]
[1733166014079,0.97567397,95751.0,95750.0,6e-07]
[1733166014308,1.18778926,95751.0,95750.0,6e-07]
[1733166014773,1.1910573,95751.0,95750.0,6e-07]
[1733166015002,1.1910573,95751.0,95721.0,0.0008651]
[1733166015003,0.17423235,95733.0,95721.0,0.0008651]
[1733166015247,0.74257433,95733.0,95721.0,0.0008651]
[1733166015492,0.73321966,95733.0,95721.0,0.0008651]
[1733166016195,0.83606487,95733.0,95732.0,0.00098767]
[1733166016673,0.85422645,95733.0,95732.0,0.00098767]
[1733166017150,0.85422645,95733.0,95732.0,0.00398767]
[1733166017879,0.85422645,95733.0,95732.0,0.00491329]
[1733166018136,0.93222862,95733.0,95732.0,0.00491329]
[1733166018846,0.93222862,95733.0,95732.0,0.00791329]
[1733166020085,0.64280437,95733.0,95732.0,0.00491329]
[1733166020368,0.21518207,95733.0,95732.0,0.00191329]
[1733166020571,0.38641442,95733.0,95732.0,0.00191329]
[1733166021055,0.46980437,95733.0,95732.0,0.00191329]
[1733166021291,0.47080437,95733.0,95732.0,0.00191329]
[1733166021776,0.49280437,95733.0,95732.0,0.00191329]
[1733166022020,0.49580437,95733.0,95732.0,0.00191329]
[1733166022246,0.49280437,95733.0,95732.0,0.00491329]
[1733166022485,0.74563583,95733.0,95732.0,0.00791329]